Cogmind - Beta 11.1 @@@ ROGUE MODE // 2022.05.31 @ 02:33:18 Player: Savant Result: Destroyed by P-80 Master with Gamma Rifle Performance ------------- Evolutions (9) 4500 Regions Visited (32) 6400 Robots Destroyed (177) 885 Value Destroyed (6810) 6810 Prototype IDs (113) 2260 Alien Tech Used (11) 2200 Bonus (7750) 7750 TOTAL SCORE: 30805 Bonus ------- High Alert Combat Kills 268 Follower Combat Kills 311 Met Data Miner 300 Met Imprinter 300 Met Zhirov 300 MAIN.C Attacked Warlord 500 Hacked Protovariant 500 Scanned by Researcher 500 Met MAIN.C 5000 Friendly Fire -229 Cogmind --------- Core Integrity 0/1600 Matter 97/425 Energy 600/600 System Corruption 0% Temperature Cool (0) Movement Flying (290) Ox3 Location -1/Command Parts ------- > --- POWER (3) -------- (None) > --- PROPULSION (8) --- Combat Linear Gravjet Experimental Q-thruster > --- UTILITY (11) ----- Advanced Energy Well Experimental Optical Array Long-range Sensor Array Experimental Signal Interpreter Advanced Targeting Computer Nanoactuators Experimental Hacking Suite Advanced System Shield > --- WEAPON (3) ------- Point Singularity Launcher > --- INVENTORY (5) ---- Nova Cannon Peak State ------------ > --- POWER ------------ Micro Antimatter Reactor Matter Drive > --- PROPULSION ------- Impulse Thruster Array Impulse Thruster Array Impulse Thruster Array Improved Q-thruster Experimental Q-thruster > --- UTILITY ---------- High-capacity Storage Unit Gravity Neutralizer Experimental Optical Array Long-range Sensor Array Experimental Signal Interpreter Light Regenerative Plating Advanced Hacking Suite Advanced Hacking Suite Experimental Hacking Suite Experimental System Shield Ghost Barrier > --- WEAPON ----------- Dirty Datajack Thunder Hammer Plasma Sword > --- INVENTORY -------- Backup Power VII Micro Antimatter Reactor Centrium Wheel Experimental Gyrokinetic Inverter Combat Linear Gravjet Combat Linear Gravjet Cooled Field Propulsion Drive Improved Diametric Drive Advanced Energy Well Advanced Force Field Integrity Redistributor Integrity Redistributor Integrity Redistributor Subatomic Replicator Vortex Cannon Enhanced Nova Cannon Enhanced Nova Cannon Point Singularity Launcher Plasma Sword [Rating: 215] Favorites ----------- Power Micro Fission Core Engine Ion Engine Power Core Micro Fission Core Reactor Micro Antimatter Reactor Propulsion Impulse Thruster Array Treads Light Treads Leg Aluminum Leg Wheel Wheel Hover Unit Combat Linear Gravjet Flight Unit Impulse Thruster Array Utility Advanced Hacking Suite Device Structural Scanner Storage Medium Storage Unit Processor Experimental Signal Interpreter Hackware Advanced Hacking Suite Protection Light Regenerative Plating Artifact Core Physics Calibrator Weapon Dirty Datajack Energy Gun Heavy Particle Gun Energy Cannon Advanced Plasma Cannon Ballistic Gun Light Assault Rifle Launcher Grenade Launcher Special Weapon RU-N14's Throwing Claymores v3 Impact Weapon Heavy Flail Slashing Weapon Sigix Broadsword Piercing Weapon Kinetic Spear Special Melee Weapon Dirty Datajack Build | -11 -10 -10 -10 -9 -8 -7 -7 -7 -7 -6 -6 -6 -6 -6 -5 -5 -5 -5 -5 -4 -4 -4 -4 -4 -3 -3 -3 -2 -2 -2 -1 -1 ------- Run | Scr Mat Min Exi Min Mat Fac Low Low Zio Pro Fac Low Low Dat Pro Fac Upp Upp War Pro Fac Upp Upp Zhi Pro Res Qua Res Tes Sec Acc Com Slots Evolved 18 | . . . . . 4 2 . . . . 2 . . . . 2 . . . . 2 . . . . 2 . 2 . . 2 . Power 2 | . . . . . . . . . . . . . . . . 1 . . . . . . . . . . . 1 . . . . Propulsion 6 | . . . . . 2 . . . . . 1 . . . . 1 . . . . . . . . . 1 . 1 . . . . Utility 9 | . . . . . 2 2 . . . . 1 . . . . . . . . . 2 . . . . 1 . . . . 1 . Weapon 1 | . . . . . . . . . . . . . . . . . . . . . . . . . . . . . . . 1 . Parts Attached 506 | 6 11 11 1 8 69 26 6 4 1 . 24 4 5 1 6 20 7 2 6 1 22 2 1 5 1 45 19 21 29 43 25 74 Power 52 | 1 1 . . . 8 4 1 1 . . . . . . . 4 . . . . 2 . . . . 2 . 1 1 8 2 16 Engine 9 | 1 1 . . . 6 . . . . . . . . . . . . . . . . . . . . . . . . 1 . . Core 23 | . . . . . 2 4 1 1 . . . . . . . 4 . . . . 2 . . . . . . . 1 1 . 7 Reactor 20 | . . . . . . . . . . . . . . . . . . . . . . . . . . 2 . 1 . 6 2 9 Propulsion 106 | 2 2 2 . 2 14 8 . . . . 6 2 2 . 1 7 . . 1 . 5 . . . . 8 5 3 4 1 2 29 Treads 8 | 1 1 1 . 1 4 . . . . . . . . . . . . . . . . . . . . . . . . . . . Leg 6 | . . . . . 3 . . . . . . 1 1 . . . . . . . . . . . . . . . . . . 1 Wheel 10 | 1 1 1 . 1 5 . . . . . . . . . . . . . . . . . . . . . . . . . . 1 Hover 18 | . . . . . . 1 . . . . . . . . . 1 . . . . . . . . . . . 1 . . . 15 Flight 64 | . . . . . 2 7 . . . . 6 1 1 . 1 6 . . 1 . 5 . . . . 8 5 2 4 1 2 12 Utility 192 | 1 3 1 1 1 16 10 2 . 1 . 14 2 3 1 5 5 4 1 . . 10 2 1 5 1 22 8 11 13 21 14 13 Device 105 | . 1 . . . 4 5 2 . . . 5 1 2 . 2 4 3 1 . . 6 2 1 3 1 15 8 7 7 8 11 6 Storage 12 | 1 1 . 1 1 1 1 . . . . . . . . 1 . . . . . 1 . . . . . . . 1 . 1 2 Processor 13 | . . . . . 5 1 . . . . 2 . . . . . . . . . 2 . . . . . . 1 . . . 2 Hackware 18 | . . . . . . 2 . . 1 . 4 . . . . . . . . . 1 . . 1 . 3 . 1 3 . . 2 Protection 43 | . 1 1 . . 6 1 . . . . 3 1 1 1 2 1 1 . . . . . . 1 . 4 . 2 2 12 2 1 Artifact 1 | . . . . . . . . . . . . . . . . . . . . . . . . . . . . . . 1 . . Weapon 156 | 2 5 8 . 5 31 4 3 3 . . 4 . . . . 4 3 1 5 1 5 . . . . 13 6 6 11 13 7 16 Energy Gun 4 | . . . . . 2 . . . . . . . . . . . . . . . . . . . . 1 . . 1 . . . Energy Cannon 38 | . . . . 1 1 . . . . . . . . . . . 1 1 2 1 1 . . . . 2 1 3 5 7 4 8 Ballistic Gun 29 | 2 3 4 . 2 16 1 . . . . . . . . . . . . . . . . . . . . . . . . . 1 Ballistic Cannon . | . . . . . . . . . . . . . . . . . . . . . . . . . . . . . . . . . Launcher 18 | . 2 2 . 2 1 1 2 1 . . 1 . . . . . 1 . . . . . . . . . 1 . . . . 4 Special Weapon 6 | . . . . . . 1 . . . . . . . . . . . . 1 . . . . . . 4 . . . . . . Impact Weapon 12 | . . . . . 2 1 1 1 . . 2 . . . . 2 . . . . . . . . . 1 1 . . 1 . . Slashing Weapon 28 | . . 2 . . 9 . . . . . 1 . . . . 1 . . . . . . . . . . 3 3 5 2 1 1 Piercing Weapon 12 | . . . . . . . . . . . . . . . . 1 1 . 1 . 4 . . . . 5 . . . . . . Special Melee Weapon 9 | . . . . . . . . 1 . . . . . . . . . . 1 . . . . . . . . . . 3 2 2 Unidentified Prototypes 26 | . . . . . 6 2 . . . . 1 . . . 1 1 . . 2 . 2 . . 2 . 2 1 . 3 1 2 . Parts Lost 91 | . 2 1 . 4 11 . 1 . . 1 . . . . 1 6 . . . . 1 . . . . 7 1 1 2 6 1 45 Power 22 | . 1 . . . 2 . 1 . . . . . . . . 2 . . . . . . . . . 1 . . 1 3 . 11 Propulsion 28 | . 1 . . 2 5 . . . . . . . . . 1 3 . . . . . . . . . 1 . . 1 . . 14 Utility 26 | . . 1 . . 3 . . . . 1 . . . . . . . . . . . . . . . 4 1 1 . 2 1 12 Weapon 15 | . . . . 2 1 . . . . . . . . . . 1 . . . . 1 . . . . 1 . . . 1 . 8 Highest Loss Streak 17 | . 1 1 . 4 3 . 1 . . 1 . . . . 1 5 . . . . 1 . . . . 5 1 1 2 2 1 17 To Critical Strikes 1 | . . . . . . . . . . . . . . . . . . . . . . . . . . . . . . 1 . . Average Slot Usage (%) 89 | . 98 99 100 96 94 90 91 95 100 100 99 100 100 100 99 91 88 88 88 88 84 84 84 84 84 89 85 82 83 82 83 74 Engine 2 | . 14 14 14 14 4 . . . . . . . . . . . . . . . . . . . . . . . . 1 . . Core 6 | . . . . . 4 7 7 7 7 7 6 6 6 6 6 9 11 11 11 11 10 10 10 10 10 6 4 5 9 3 6 4 Reactor 1 | . . . . . . . . . . . . . . . . . . . . . . . . . . 1 4 4 2 6 4 3 Treads 2 | . 14 14 14 14 11 . . . . . . . . . . . . . . . . . . . . . . . . . . . Wheel 2 | . 13 13 14 10 12 . . . . . . . . . . . . . . . . . . . . . . . . . . . Flight 18 | . . . . . . 29 30 30 30 30 32 33 33 33 32 28 23 23 23 23 16 15 15 15 15 22 24 26 23 21 19 10 Device 8 | . 2 . . . 5 15 14 15 15 15 12 12 13 10 12 11 10 11 11 11 10 10 10 10 10 8 11 9 7 6 7 4 Storage 6 | . 14 14 14 14 9 7 7 7 7 7 6 6 6 6 6 5 5 5 5 5 5 5 5 5 5 4 4 4 4 4 4 4 Processor 7 | . . . . . 12 8 7 7 7 7 4 6 6 6 6 5 5 5 5 5 9 10 10 10 10 9 9 8 8 8 8 9 Hackware 14 | . . . . . . 13 15 15 15 15 20 20 20 20 20 17 17 17 17 17 20 21 21 21 21 20 14 14 17 21 20 12 Protection 3 | . 10 13 14 14 7 . . . . . . . . 2 . . . . . . . . . . . 3 4 4 3 . 3 1 Energy Cannon 1 | . . . . 8 1 . . . . . . . . . . . 3 3 4 3 5 5 5 5 5 3 . . . . . 2 Ballistic Gun 3 | . 27 25 28 18 12 . . . . . . . . . . . . . . . . . . . . . . . . . . . Impact Weapon 1 | . . . . . . 5 6 6 7 7 4 6 6 6 6 3 1 . . . . . . . . . . . . 3 4 2 Slashing Weapon 1 | . . 2 . . 2 . . . . . 1 . . . . . . . . . . . . . . . 3 3 3 . . 3 Special Melee Weapon 1 | . . . . . . . . 3 7 7 6 6 6 6 6 5 5 5 5 1 . . . . . . . . . 1 3 1 Naked Turns . | . . . . . . . . . . . . . . . . . . . . . . . . . . . . . . . . . Heaviest Build 109 | 13 31 32 51 53 63 23 27 21 21 21 28 23 23 23 23 31 32 32 32 34 45 45 45 45 44 57 60 53 73 75 82 109 Greatest Support 90 | 10 20 20 10 20 44 21 21 21 21 21 26 26 26 26 27 37 37 37 37 37 45 45 45 45 45 53 54 74 74 73 74 90 Greatest Overweight (x) 6 | 1 3 3 5 5 5 2 1 . . . 1 . . . . 1 . . . . 1 . . . . 1 1 . . 1 4 6 Average Overweight (x) . | . 1 2 4 3 2 . . . . . . . . . . . . . . . . . . . . . . . . . . . Largest Inventory Capacity 20 | 8 15 15 20 20 20 20 10 10 10 10 10 10 10 10 10 10 10 10 10 10 15 15 15 15 15 15 15 15 20 20 20 20 Average Capacity 14 | 6 11 15 18 17 19 10 10 10 10 10 10 10 10 10 10 10 10 10 10 10 13 15 15 15 15 15 15 15 18 20 20 16 Most Carried 20 | 6 13 14 15 15 20 20 10 10 10 10 10 10 10 10 10 10 10 10 10 10 15 15 15 15 15 15 15 15 20 20 20 20 Average Carried 13 | 3 9 12 13 13 18 9 9 9 10 10 9 10 9 10 9 9 10 9 9 10 13 15 15 14 15 14 14 14 17 19 19 12 Final Capacity 20 | 8 15 15 20 15 20 10 10 10 10 10 10 10 10 10 10 10 10 10 10 10 15 15 15 15 15 15 15 15 20 20 20 5 Final Carried 20 | 6 13 13 15 13 20 10 10 10 10 10 10 10 10 10 9 10 10 10 10 10 15 15 15 15 15 15 15 15 20 19 20 1 Class Distribution -------------------- 47% | Hacker-Scout 17% | Mutant 13% | Wizard-Scout 6% | Hacker-Ninja 4% | Hacker-Sprinter 3% | Scavenger-Mutant Dominant Class ---------------- Mutant | -10/Materials Mutant | -10/Mines Mutant | -10/Exiles Mutant | -9/Mines Mutant | -8/Materials Hacker-Scout | -7/Factory Hacker-Scout | -7/Lower Caves Hacker-Scout | -7/Lower Caves Hacker-Scout | -7/Zion Hacker-Scout | -6/Proximity Caves Hacker-Scout | -6/Factory Hacker-Scout | -6/Lower Caves Hacker-Scout | -6/Lower Caves Hacker-Scout | -6/Data Miner Hacker-Scout | -5/Proximity Caves Hacker-Scout | -5/Factory Hacker-Scout | -5/Upper Caves Hacker-Scout | -5/Upper Caves Hacker-Scout | -5/Warlord Hacker-Scout | -4/Proximity Caves Hacker-Scout | -4/Factory Hacker-Scout | -4/Upper Caves Hacker-Scout | -4/Upper Caves Hacker-Scout | -4/Zhirov Hacker-Scout | -3/Proximity Caves Hacker-Scout | -3/Research Hacker-Ninja | -3/Quarantine Hacker-Ninja | -2/Research Wizard-Scout | -2/Testing Wizard-Scout | -2/Section 7 Wizard-Scout | -1/Access Wizard-Scout | -1/Command Resources | -11 -10 -10 -10 -9 -8 -7 -7 -7 -7 -6 -6 -6 -6 -6 -5 -5 -5 -5 -5 -4 -4 -4 -4 -4 -3 -3 -3 -2 -2 -2 -1 -1 ----------- Run | Scr Mat Min Exi Min Mat Fac Low Low Zio Pro Fac Low Low Dat Pro Fac Upp Upp War Pro Fac Upp Upp Zhi Pro Res Qua Res Tes Sec Acc Com Matter Collected 5815 | 166 244 222 92 179 968 260 238 72 10 . 170 106 31 . 59 193 87 40 . 70 220 10 20 38 32 294 295 250 214 524 398 313 Remotely . | . . . . . . . . . . . . . . . . . . . . . . . . . . . . . . . . . Salvage Created 7487 | . 351 143 . 87 1395 150 79 . . . 519 33 . . 68 263 . . . . 378 . . 38 . 816 461 465 357 527 830 527 Parts 309 | . 19 12 . . 70 6 1 . . . 17 . . . 3 2 . . . . 22 . . 1 . 37 25 39 15 8 17 15 Haulers Intercepted 19 | . 1 . . . 5 . . . . . 3 . . . . 2 . . . . 1 . . . . 3 . . . 1 3 . Recyclers Shooed 1 | . . . . . 1 . . . . . . . . . . . . . . . . . . . . . . . . . . . Parts Field Recycled . | . . . . . . . . . . . . . . . . . . . . . . . . . . . . . . . . . Retrieved Matter . | . . . . . . . . . . . . . . . . . . . . . . . . . . . . . . . . . Parts Self-Destructed 23 | . . . . . . . 4 . . . . . 4 . 10 . . . . 4 . . . 1 . . . . . . . . Prevented 8 | . . . . . . . 2 1 . . . . . . . . 5 . . . . . . . . . . . . . . . Kills | -11 -10 -10 -10 -9 -8 -7 -7 -7 -7 -6 -6 -6 -6 -6 -5 -5 -5 -5 -5 -4 -4 -4 -4 -4 -3 -3 -3 -2 -2 -2 -1 -1 ------- Run | Scr Mat Min Exi Min Mat Fac Low Low Zio Pro Fac Low Low Dat Pro Fac Upp Upp War Pro Fac Upp Upp Zhi Pro Res Qua Res Tes Sec Acc Com Combat Hostiles Destroyed 121 | . 13 9 . 12 26 5 1 . . . 4 1 . . 1 . . . . . 2 . . . . 20 3 7 4 6 4 3 Melee 25 | . . . . . 1 . 1 . . . . . . . 1 . . . . . 2 . . . . 1 2 7 4 3 3 . Guns 38 | . 7 4 . 6 21 . . . . . . . . . . . . . . . . . . . . . . . . . . . Cannons 6 | . . . . . 2 . . . . . . . . . . . . . . . . . . . . 1 . . . . . 3 AOE 44 | . 6 5 . 6 2 4 . . . . 4 . . . . . . . . . . . . . . 16 1 . . . . . Classes Destroyed 20 | . 4 1 . 1 6 2 1 . . . . 2 . . . . . . . . 1 . . . . . . . 1 1 . . Worker 7 | . 1 . . . . . . . . . 2 . . . . . . . . . . . . . . 4 . . . . . . Builder 6 | . . . . . 1 . . . . . 1 . . . . . . . . . . . . . . 4 . . . . . . Tunneler 1 | . . . . . . 1 . . . . . . . . . . . . . . . . . . . . . . . . . . Hauler 19 | . 1 . . . 5 . . . . . 3 . . . . 2 . . . . 1 . . . . 3 . . . 1 3 . Recycler 7 | . . 1 . . . . . . . . . . . . . . . . . . . . . . . 1 2 . . . 1 2 Minesweeper 1 | . . . . . . . . . . . . 1 . . . . . . . . . . . . . . . . . . . . Mechanic 1 | . . . . . . . . . . . . . . . . . . . . . 1 . . . . . . . . . . . Operator 6 | . . . . . 2 . . . . . . . . . . . . . . . . . . . . 1 1 . 2 . . . Drone 1 | . . . . . . . . . . . . . . . . . . . . . . . . . . . . . . 1 . . Watcher 19 | . . . . . 1 2 . . . . 4 . . . . 3 . . . . 4 . . . . 2 . . . 1 2 . Swarmer 40 | . 6 9 . . 4 4 1 . . . 4 . . . . . . . . . 1 . . . . 10 1 . . . . . Grunt 32 | . 7 . . . 15 . . . . . . . . . . . . . . . 1 . . . . 6 . . . 2 . 1 Duelist 2 | . . . . . 1 . . . . . . . . . . . . . . . . . . . . . . . . 1 . . Researcher 1 | . . . . . . . . . . . . . . . . . . . . . . . . . . . . . 1 . . . Sentry 8 | . . . . . 5 . . . . . . . . . 1 . . . . . . . . . . . . . . 2 . . Specialist 1 | . . . . . . . 1 . . . . . . . . . . . . . . . . . . . . . . . . . Hunter 11 | . . . . . 1 . . . . . . . . . . . . . . . . . . . . 4 . . 1 . 4 1 Programmer 14 | . . . . . . 1 . . . . . . . . . . . . . . . . . . . . 2 7 3 . . 1 Thief 1 | . . . . . . . . . . . . 1 . . . . . . . . . . . . . . . . . . . . Assembled 12 | . . . . 12 . . . . . . . . . . . . . . . . . . . . . . . . . . . . Best Kill Streak 12 | . 4 3 . 12 5 5 1 . . . 5 1 . . 1 2 . . . . 2 . . . . 10 3 3 2 1 3 4 Combat Bots Only 12 | . 3 3 . 12 4 4 1 . . . 4 1 . . 1 . . . . . 1 . . . . 7 1 3 2 1 3 3 Max Kills in Single Turn 7 | . 4 3 . 2 2 2 1 . . . 4 1 . . 1 2 . . . . 1 . . . . 7 1 1 1 1 1 1 Gunslinging . | . . . . . . . . . . . . . . . . . . . . . . . . . . . . . . . . . Exploded 4 | . 3 3 . 2 2 2 . . . . 4 . . . . . . . . . . . . . . 4 1 . . . . . Melee 1 | . . . . . 1 . 1 . . . . . . . 1 . . . . . 1 . . . . 1 1 1 1 1 1 . Uniques/NPCs Destroyed . | . . . . . . . . . . . . . . . . . . . . . . . . . . . . . . . . . Combat | -11 -10 -10 -10 -9 -8 -7 -7 -7 -7 -6 -6 -6 -6 -6 -5 -5 -5 -5 -5 -4 -4 -4 -4 -4 -3 -3 -3 -2 -2 -2 -1 -1 -------- Run | Scr Mat Min Exi Min Mat Fac Low Low Zio Pro Fac Low Low Dat Pro Fac Upp Upp War Pro Fac Upp Upp Zhi Pro Res Qua Res Tes Sec Acc Com Damage Taken 17522 | . 352 197 . 571 2072 186 87 64 . 44 70 20 . . 47 559 41 20 . . 368 . 23 . . 1438 159 730 709 2143 230 7392 Core 2598 | . 48 13 . 118 227 17 30 31 . 15 24 . . . . 99 . . . . 66 . . . . 263 . 47 25 335 43 1197 Absorbed by Shields 306 | . . . . . 51 . . . . . . . . . . . . . . . . . . . . . . . . . . 255 Redirected to Shielding 271 | . . . . . . . . . . . . . . . . . . . . . . . . . . 104 . 167 . . . . Regen/Repaired (Parts) 3660 | . . . . . 201 169 . . . . 18 . . . . 32 1 . . . 64 . . . . 158 326 219 659 186 159 1468 Core Remaining (%) 77 | 100 . . . 28 58 . . . . 86 . . . . 97 . . . . 90 . . . . 94 . 79 . . 62 . . Volleys Fired 283 | . 25 11 . 23 81 5 2 1 . . 1 . . . . . 4 2 . 1 5 4 1 . 1 22 2 3 14 14 12 49 Largest 2 | . 2 2 . 2 2 1 1 1 . . 1 . . . . . 1 1 . 1 1 1 1 . 1 2 1 1 2 1 1 2 Hottest 160 | . 50 40 . 88 93 36 50 50 . . 43 . . . . . 98 98 . 98 98 98 98 . 98 98 120 120 160 120 120 153 Shots Fired 417 | . 46 19 . 41 150 5 2 1 . . 1 . . . . . 4 2 . 1 5 5 1 . 1 23 2 3 15 14 12 64 Gun 234 | . 43 16 . 35 131 . . . . . . . . . . . . . . . . . . . . . . . 1 . . 8 Cannon 146 | . . . . 1 18 . . . . . . . . . . . 4 2 . 1 5 5 1 . 1 13 1 3 14 14 12 51 Launcher 27 | . 3 3 . 5 1 5 2 1 . . 1 . . . . . . . . . . . . . . . 1 . . . . 5 Special 10 | . . . . . . . . . . . . . . . . . . . . . . . . . . 10 . . . . . . Kinetic 233 | . 43 16 . 35 131 . . . . . . . . . . . . . . . . . . . . . . . . . . 8 Thermal 125 | . . . . 1 18 . . . . . . . . . . . 4 2 . 1 5 5 1 . 1 13 1 3 13 14 12 31 Explosive 33 | . 3 3 . 5 1 5 . . . . . . . . . . . . . . . . . . . 10 1 . . . . 5 Electromagnetic 5 | . . . . . . . 2 1 . . 1 . . . . . . . . . . . . . . . . . 1 . . . Entropic 21 | . . . . . . . . . . . . . . . . . . . . . . . . . . . . . 1 . . 20 Robot Hit Streak 32 | . 14 2 . 8 32 7 . . . . . . . . . . . . . . 3 . . . . 4 . . 4 . . 12 Robot Miss Streak 4 | . 4 3 . 3 3 3 . . . . . . . . . . . . . . . . . . . 2 . . . . . 4 Penetration Max 1 | . . . . . 1 . . . . . . . . . . . . . . . . . . . . . . . . . . . Secondary Targets 8 | . 1 . . 2 5 . . . . . . . . . . . . . . . . . . . . . . . . . . . Max Gunslinging Chain 1 | . 1 . . 1 1 . . . . . . . . . . . . . . . . . . . . . . . . . . . Shots Hit Robots 459 | . 33 9 . 28 138 9 1 . . . 10 2 . . 5 11 . . . . 14 . . 1 . 24 10 18 17 15 17 97 Core Hits 246 | . 25 9 . 27 64 6 3 1 . . 9 . . . 1 1 . . . . 7 . . 1 . 38 7 6 7 3 8 23 Critical Kills 5 | . . . . . . . . . . . . . . . 1 . . . . . 1 . . . . . . . . . 3 . Critical Parts Destroyed 20 | . . . . . 1 2 . . . . . . . . . 1 . . . . . . . . . 2 . . . 4 1 9 Critical Strikes 42 | . . . . . 4 2 . . . . . . . . 1 1 . . . . 3 . . . . 8 . . 1 6 4 12 Meltdown 1 | . . . . . . . . . . . . . . . . . . . . . 1 . . . . . . . . . . . Destroy 1 | . . . . . 1 . . . . . . . . . . . . . . . . . . . . . . . . . . . Smash 28 | . . . . . . 2 . . . . . . . . 1 1 . . . . . . . . . 2 . . . 6 4 12 Sever 7 | . . . . . 3 . . . . . . . . . . . . . . . . . . . . 4 . . . . . . Impale 4 | . . . . . . . . . . . . . . . . . . . . . 2 . . . . 2 . . . . . . Sunder 1 | . . . . . . . . . . . . . . . . . . . . . . . . . . . . . 1 . . . Melee Attacks 645 | . . 4 . . 43 35 3 1 1 6 37 8 2 . 8 42 . 2 . 4 53 5 4 1 3 65 35 86 47 30 38 82 Impact 245 | . . . . . 2 35 3 1 1 6 31 8 2 . 7 36 . . . . . . . . . 9 1 . . 20 34 49 Slashing 258 | . . 4 . . 41 . . . . . 6 . . . . . . . . . . . . . . . 34 86 47 8 . 32 Piercing 142 | . . . . . . . . . . . . . . . 1 6 . 2 . 4 53 5 4 1 3 56 . . . 2 4 1 Sneak Attacks 43 | . . 1 . . 10 . . . . . 5 1 . . 1 4 . . . . 3 . . . . 3 3 . 2 3 6 1 Combat Hostiles 7 | . . . . . . . . . . . . . . . 1 2 . . . . 1 . . . . . . . . 2 1 . Follow-up Attacks 15 | . . . . . 1 . . . . . . . . . . . . . . . . . . . . 2 . . . . . 12 Damage Inflicted 26772 | . 771 396 . 802 3296 672 158 47 . . 1385 156 . . 218 537 . . . . 797 . . 59 . 5534 1259 1535 1791 1040 1226 5093 Guns 2634 | . 330 81 . 249 1893 . . . . . . . . . . . . . . . . . . . . . . . . . . 81 Cannons 2058 | . . . . . 127 . . . . . . . . . . . . . . . 73 . . . . 35 . . 69 . . 1754 Explosions 6629 | . 441 269 . 553 198 344 89 47 . . 483 . . . . . . . . . . . . . . 4142 63 . . . . . Melee 15015 | . . 46 . . 1078 328 69 . . . 902 156 . . 218 537 . . . . 724 . . 59 . 921 1196 1535 1722 1040 1226 3258 Ramming . | . . . . . . . . . . . . . . . . . . . . . . . . . . . . . . . . . Kinetic 2634 | . 330 81 . 249 1893 . . . . . . . . . . . . . . . . . . . . . . . . . . 81 Thermal 727 | . . . . . 127 . . . . . . . . . . . . . . . 73 . . . . 35 . . . . . 492 Explosive 6493 | . 441 269 . 553 198 344 . . . . 483 . . . . . . . . . . . . . . 4142 63 . . . . . Electromagnetic 136 | . . . . . . . 89 47 . . . . . . . . . . . . . . . . . . . . . . . . Impact 6511 | . . . . . . 328 69 . . . 865 156 . . 217 524 . . . . . . . . . 190 . . . 901 1216 2045 Slashing 7399 | . . 46 . . 1078 . . . . . 37 . . . . . . . . . . . . . . 436 1196 1535 1722 138 . 1211 Piercing 1541 | . . . . . . . . . . . . . . . 1 13 . . . . 724 . . 59 . 731 . . . 1 10 2 Entropic 1331 | . . . . . . . . . . . . . . . . . . . . . . . . . . . . . 69 . . 1262 Highest Corruption 8 | . 1 1 1 1 . 1 . . . 1 . . . . . 5 1 . . . 1 1 1 1 1 1 1 4 8 8 . . Average Corruption 3 | . 1 1 1 1 . 1 . . . 1 . . . . . 4 1 . . . 1 1 1 1 1 1 1 2 6 8 . . Corruption Purged 7 | . . . . . . 1 . . . . . . . . . 5 1 . . . . . . . . . . . . . . . Corruption Blocked 20 | . . . . . . . . . . . . . . . . . . . . . . . . . . . . . . 20 . . Effects 98 | . 6 6 2 2 . . . . . . . . . . . 8 . . . . . 2 1 . 4 . 3 5 21 38 . . Message Errors 22 | . . 2 1 . . . . . . . . . . . . 3 . . . . . . . . 2 . . 2 6 6 . . Matter Fused 24 | . 3 . . . . . . . . . . . . . . 2 . . . . . . . . . . 1 . 7 11 . . Heat Flow Errors 10 | . . . . . . . . . . . . . . . . . . . . . . . . . . . . . 4 6 . . Energy Discharges 13 | . . . . 1 . . . . . . . . . . . . . . . . . . . . 1 . . 1 3 7 . . Parts Rejected 3 | . 1 1 . . . . . . . . . . . . . . . . . . . . . . . . . . . 1 . . Data Loss (minor) 12 | . 1 . 1 . . . . . . . . . . . . . . . . . . 1 1 . . . 1 1 1 5 . . Data Loss (major) 8 | . . 3 . 1 . . . . . . . . . . . 1 . . . . . . . . . . 1 1 . 1 . . Misfires 1 | . . . . . . . . . . . . . . . . . . . . . . 1 . . . . . . . . . . Alerts 5 | . 1 . . . . . . . . . . . . . . 2 . . . . . . . . 1 . . . . 1 . . Overload Shots . | . . . . . . . . . . . . . . . . . . . . . . . . . . . . . . . . . Overflow Damage 3212 | . 39 16 . 7 110 164 . . . . 189 34 . . . 254 . . . . 41 . . . . 428 230 273 230 514 133 550 Projectiles 46 | . . . . . . . . . . . . . . . . . . . . . . . . . . 31 . . . . . 15 Explosions 403 | . 39 . . 7 4 23 . . . . 20 . . . . . . . . . . . . . . 310 . . . . . . Melee 2763 | . . 16 . . 106 141 . . . . 169 34 . . . 254 . . . . 41 . . . . 87 230 273 230 514 133 535 Knockbacks 15 | . . . . . . 3 . . . . . 1 . . 1 1 . . . . . . . . . 3 . . . 2 2 2 Impact 13 | . . . . . . 3 . . . . . 1 . . 1 1 . . . . . . . . . 2 . . . 2 2 1 Kinetic . | . . . . . . . . . . . . . . . . . . . . . . . . . . . . . . . . . Secondary 2 | . . . . . . . . . . . . . . . . . . . . . . . . . . 1 . . . . . 1 Self-Inflicted Damage 83 | . . 31 . 37 15 . . . . . . . . . . . . . . . . . . . . . . . . . . . Shots 6 | . . 1 . 4 1 . . . . . . . . . . . . . . . . . . . . . . . . . . . Rammed . | . . . . . . . . . . . . . . . . . . . . . . . . . . . . . . . . . Targets Rammed . | . . . . . . . . . . . . . . . . . . . . . . . . . . . . . . . . . Kicked . | . . . . . . . . . . . . . . . . . . . . . . . . . . . . . . . . . Crushed . | . . . . . . . . . . . . . . . . . . . . . . . . . . . . . . . . . Highest Temperature 479 | . 37 6 . 54 104 . 6 17 . . 5 . . . . 52 240 60 . 60 479 98 62 . 22 76 . 62 350 347 112 144 Average Temperature 48 | . 13 4 . 11 22 . 4 6 . . 2 . . . . 15 119 31 . 31 127 42 36 . 16 23 . 11 105 102 43 52 Received Heat Transfer 2461 | . 147 . . 40 780 . . 54 . . 24 . . . . 36 9 . . . 51 . 12 . . 212 . 36 . 234 18 808 Effects 1 | . . . . . . . . . . . . . . . . . . . . . . . . . . . . . 1 . . . Shutdowns 1 | . . . . . . . . . . . . . . . . . . . . . . . . . . . . . 1 . . . Siege Activations . | . . . . . . . . . . . . . . . . . . . . . . . . . . . . . . . . . Robots Corrupted . | . . . . . . . . . . . . . . . . . . . . . . . . . . . . . . . . . Combat Hostiles . | . . . . . . . . . . . . . . . . . . . . . . . . . . . . . . . . . Parts Fried 36 | . . . . . . 7 . . . . 6 5 . . . 4 . . . . . . . . . 4 . . . 4 1 5 Impact Corruptions 57 | . . . . . . 8 . . . . 5 2 . . . 7 . . . . . . . . . 5 . . . 12 6 12 Robots Melted 1 | . . . . . . . . . . . . . . . . . . . . . 1 . . . . . . . . . . . Combat Hostiles . | . . . . . . . . . . . . . . . . . . . . . . . . . . . . . . . . . Parts Melted . | . . . . . . . . . . . . . . . . . . . . . . . . . . . . . . . . . Heat Transferred 779 | . . . . . 222 . . . . . . . . . . . . . . . 100 . . . . 50 . . . . . 407 Parts Sabotaged . | . . . . . . . . . . . . . . . . . . . . . . . . . . . . . . . . . Parts Stolen . | . . . . . . . . . . . . . . . . . . . . . . . . . . . . . . . . . Parts Stripped . | . . . . . . . . . . . . . . . . . . . . . . . . . . . . . . . . . Power Chain Reactions . | . . . . . . . . . . . . . . . . . . . . . . . . . . . . . . . . . Missiles Intercepted . | . . . . . . . . . . . . . . . . . . . . . . . . . . . . . . . . . Alert | -11 -10 -10 -10 -9 -8 -7 -7 -7 -7 -6 -6 -6 -6 -6 -5 -5 -5 -5 -5 -4 -4 -4 -4 -4 -3 -3 -3 -2 -2 -2 -1 -1 ------- Run | Scr Mat Min Exi Min Mat Fac Low Low Zio Pro Fac Low Low Dat Pro Fac Upp Upp War Pro Fac Upp Upp Zhi Pro Res Qua Res Tes Sec Acc Com Peak Influence 701 | . 320 210 . 33 367 298 . . . . 262 . . . . 278 . . . . 231 . . . . 701 465 540 468 528 274 453 Initial 379 | . . 62 . . 12 135 . . . . . . . . . 60 . . . . 6 . . . . . 379 217 285 69 76 113 Average 194 | . 176 146 . 21 218 172 . . . . 54 . . . . 114 . . . . 128 . . . . 274 343 373 232 208 172 159 Maximum Alert Level 3 | . 1 1 . . 1 1 . . . . 1 . . . . 1 . . . . 1 . . . . 3 2 2 2 2 1 2 Low Security (%) 56 | 100 54 87 . 100 42 55 . . . . 97 . . . . 86 . . . . 83 . . . . 38 6 . 45 53 75 65 Level 1 33 | . 45 12 . . 57 44 . . . . 2 . . . . 13 . . . . 16 . . . . 37 71 56 36 29 25 26 Level 2 9 | . . . . . . . . . . . . . . . . . . . . . . . . . . 24 22 43 17 17 . 8 Level 3 . | . . . . . . . . . . . . . . . . . . . . . . . . . . . . . . . . . Level 4 . | . . . . . . . . . . . . . . . . . . . . . . . . . . . . . . . . . Level 5 . | . . . . . . . . . . . . . . . . . . . . . . . . . . . . . . . . . High Security . | . . . . . . . . . . . . . . . . . . . . . . . . . . . . . . . . . Max Security . | . . . . . . . . . . . . . . . . . . . . . . . . . . . . . . . . . Squads Dispatched 65 | . 3 . . . 5 2 . . . . 3 . . . . 7 . . . . 5 . . . . 17 3 4 6 7 3 . Investigation 22 | . 2 . . . 3 2 . . . . 2 . . . . 3 . . . . 2 . . . . 5 1 . 1 1 . . Extermination 11 | . . . . . . . . . . . . . . . . 1 . . . . 1 . . . . 2 1 2 2 1 1 . Reinforcement 27 | . 1 . . . 2 . . . . . 1 . . . . 1 . . . . 2 . . . . 8 1 2 2 5 2 . Assault 1 | . . . . . . . . . . . . . . . . . . . . . . . . . . . . . 1 . . . Garrison 4 | . . . . . . . . . . . . . . . . 2 . . . . . . . . . 2 . . . . . . Intercept . | . . . . . . . . . . . . . . . . . . . . . . . . . . . . . . . . . Searches Triggered 2 | . . . . . . . . . . . . . . . . . . . . . . . . . . 1 . . . 1 . . Data Miner Redirects 6 | . . . . . . . . . . . . . . . . . . . . . . . . . . 3 1 . 1 1 . . Construction Impeded . | . . . . . . . . . . . . . . . . . . . . . . . . . . . . . . . . . Haulers Reinforced 6 | . . . . . . . . . . . . . . . . . . . . . 1 . . . . 3 . . 1 . 1 . Active Scanning Responses . | . . . . . . . . . . . . . . . . . . . . . . . . . . . . . . . . . Cargo Convoy Interrupts 1 | . . . . . . . . . . . . . . . . . . . . . . . . . . 1 . . . . . . Stealth | -11 -10 -10 -10 -9 -8 -7 -7 -7 -7 -6 -6 -6 -6 -6 -5 -5 -5 -5 -5 -4 -4 -4 -4 -4 -3 -3 -3 -2 -2 -2 -1 -1 --------- Run | Scr Mat Min Exi Min Mat Fac Low Low Zio Pro Fac Low Low Dat Pro Fac Upp Upp War Pro Fac Upp Upp Zhi Pro Res Qua Res Tes Sec Acc Com Distress Signals 31 | . . 2 . . 1 1 . . . . . . . . . 3 . . . . 3 . . . . 8 2 2 4 2 . 3 Communications Jammed . | . . . . . . . . . . . . . . . . . . . . . . . . . . . . . . . . . Distress Signals . | . . . . . . . . . . . . . . . . . . . . . . . . . . . . . . . . . Times Spotted 471 | . 21 11 . 13 38 18 5 4 . 3 9 1 . . 5 19 4 5 2 1 29 . 4 . 3 79 21 26 15 74 23 38 Peak Tracking Total 26 | . 7 3 . 8 4 6 3 4 . 4 2 1 . . 3 7 4 3 2 3 9 . 4 . 3 26 8 11 4 18 8 11 Tactical Retreats 72 | . . 1 . 1 1 3 1 2 . . 2 . . . 1 1 1 4 . 1 10 . . . . 11 4 2 2 15 1 8 Traps | -11 -10 -10 -10 -9 -8 -7 -7 -7 -7 -6 -6 -6 -6 -6 -5 -5 -5 -5 -5 -4 -4 -4 -4 -4 -3 -3 -3 -2 -2 -2 -1 -1 ------- Run | Scr Mat Min Exi Min Mat Fac Low Low Zio Pro Fac Low Low Dat Pro Fac Upp Upp War Pro Fac Upp Upp Zhi Pro Res Qua Res Tes Sec Acc Com Traps Triggered 16 | . 1 . . . 2 . . . . . 2 . . . . 1 . . . . 4 . . . . 2 1 1 1 1 . . Indirectly . | . . . . . . . . . . . . . . . . . . . . . . . . . . . . . . . . . Trap Hack Attempts . | . . . . . . . . . . . . . . . . . . . . . . . . . . . . . . . . . Triggered . | . . . . . . . . . . . . . . . . . . . . . . . . . . . . . . . . . Disarmed 4 | . . . . . . 4 . . . . . . . . . . . . . . . . . . . . . . . . . . Reprogrammed 35 | . 4 . . . . . . . . . 6 . . . . . . . . . . . . . . 6 . . . 18 . 1 Reused 8 | . 1 . . . . . . . . . . 1 . . . . . . . . . . . . . 1 . . . 4 . 1 Traps Extracted . | . . . . . . . . . . . . . . . . . . . . . . . . . . . . . . . . . Installed 4 | . . . . . . . . . . . . 3 . . . . 1 . . . . . . . . . . . . . . . Triggered 28 | . 1 . . . . . 1 1 . . . 1 2 . . 1 3 . 12 . . . . . . 1 . . . 4 . 1 Machines | -11 -10 -10 -10 -9 -8 -7 -7 -7 -7 -6 -6 -6 -6 -6 -5 -5 -5 -5 -5 -4 -4 -4 -4 -4 -3 -3 -3 -2 -2 -2 -1 -1 ---------- Run | Scr Mat Min Exi Min Mat Fac Low Low Zio Pro Fac Low Low Dat Pro Fac Upp Upp War Pro Fac Upp Upp Zhi Pro Res Qua Res Tes Sec Acc Com Machines Disabled 30 | . . . . . . 1 . . . . 10 . . . . . . . . . . . . . . 2 3 . 4 8 . 2 Max in Single Turn 4 | . . . . . . 1 . . . . 4 . . . . . . . . . . . . . . 1 1 . 1 1 . 2 Garrison Access 16 | . . . . . 1 2 . . . . 1 . . . . 2 . . . . 3 . . . . 1 1 2 1 1 1 . Phase Generator 1 | . . . . . . . . . . . . . . . . . . . . . . . . . . . . . . . . 1 Machines Sabotaged . | . . . . . . . . . . . . . . . . . . . . . . . . . . . . . . . . . Garrisons Compromised . | . . . . . . . . . . . . . . . . . . . . . . . . . . . . . . . . . Overloaded Fab Kills . | . . . . . . . . . . . . . . . . . . . . . . . . . . . . . . . . . Hacking | -11 -10 -10 -10 -9 -8 -7 -7 -7 -7 -6 -6 -6 -6 -6 -5 -5 -5 -5 -5 -4 -4 -4 -4 -4 -3 -3 -3 -2 -2 -2 -1 -1 --------- Run | Scr Mat Min Exi Min Mat Fac Low Low Zio Pro Fac Low Low Dat Pro Fac Upp Upp War Pro Fac Upp Upp Zhi Pro Res Qua Res Tes Sec Acc Com Machines Accessed 221 | . 7 . 1 . 9 23 1 2 . . 29 1 . 4 . 21 . 1 3 . 19 . . 4 . 18 13 13 16 19 9 8 Terminals 120 | . 6 . . . 4 12 . . . . 18 . . . . 13 . . . . 9 . . . . 8 9 4 10 15 6 6 Fabricators 18 | . . . . . . 3 . . . . 4 . . . . 3 . . . . 3 . . . . 3 . 1 1 . . . Repair Stations 18 | . . . . . 2 2 . . . . 2 . . . . 1 . . . . 1 . . . . 2 1 1 2 1 1 2 Recycling Units 14 | . 1 . . . 1 3 . . . . 3 . . . . . . . . . 3 . . . . . . 3 . . . . Scanalyzers 15 | . . . . . 1 1 . . . . . . . . . 1 . . . . . . . . . 3 2 2 2 2 1 . Garrison Access 19 | . . . . . 1 2 . . . . 2 . . . . 3 . . . . 3 . . . . 2 1 2 1 1 1 . Total Hacks 795 | . 24 . 4 . 28 80 1 2 . . 101 6 . 29 . 80 . 1 7 . 57 . . 17 . 57 52 31 58 76 44 40 Successful 592 | . 14 . 4 . 20 57 1 2 . . 63 6 . 29 . 64 . 1 7 . 41 . . 17 . 49 32 27 42 61 32 23 Failed 201 | . 10 . . . 8 23 . . . . 38 . . . . 16 . . . . 15 . . . . 7 20 4 16 15 12 17 Catastrophic 15 | . 1 . . . 1 4 . . . . 4 . . . . . . . . . 2 . . . . . . . . . 2 1 Database Lockouts 2 | . . . . . . . . . . . . . . . . . . . . . 1 . . . . 1 . . . . . . Manual 296 | . 13 . . . 10 28 . . . . 47 . . . . 36 . . . . 28 . . . . 23 14 4 18 34 23 18 Terminals 496 | . 22 . . . 14 48 . . . . 65 . . . . 59 . . . . 39 . . . . 29 33 12 41 68 35 31 Fabricators 61 | . . . . . . 11 . . . . 19 . . . . 10 . . . . 7 . . . . 7 . 3 4 . . . Repair Stations 53 | . . . . . 5 8 . . . . 4 . . . . 2 . . . . 2 . . . . 3 7 1 6 1 5 9 Recycling Units 31 | . 2 . . . 4 7 . . . . 8 . . . . . . . . . 5 . . . . . . 5 . . . . Scanalyzers 59 | . . . . . 3 3 . . . . . . . . . 4 . . . . . . . . . 16 10 8 6 6 3 . Garrison Access 28 | . . . . . 2 3 . . . . 5 . . . . 5 . . . . 4 . . . . 2 2 2 1 1 1 . Terminal Hacks 294 | . 8 . 4 . 5 20 1 2 . . 28 6 . 29 . 28 . 1 7 . 18 . . 17 . 19 11 7 21 36 14 12 Record 30 | . . . 4 . . . . . . . . 6 . 11 . . . . . . . . . 5 . 1 3 . . . . . Part Schematic 29 | . . . . . 1 1 . . . . 4 . . 9 . 3 . . . . 3 . . 4 . 3 . 1 . . . . Robot Schematic 7 | . . . . . . 1 . . . . . . . 6 . . . . . . . . . . . . . . . . . . Robot Analysis 19 | . 2 . . . . 1 . . . . . . . . . 7 . . . . 1 . . 4 . . . . 3 1 . . Prototype ID Bank 34 | . . . . . 1 2 . . . . 5 . . 3 . 3 . . 5 . 3 . . 4 . . . . 4 2 1 1 Open Door 11 | . . . . . . . 1 2 . . . . . . . . . 1 2 . . . . . . . . . . 5 . . Level Access Points 4 | . . . . . 1 . . . . . . . . . . . . . . . . . . . . . 1 . 1 . . 1 Branch Access Points 8 | . . . . . . 1 . . . . 1 . . . . 1 . . . . 1 . . . . 1 . 1 1 . 1 . Emergency Access Points 3 | . . . . . . 1 . . . . . . . . . . . . . . 1 . . . . . . . . . . 1 Machine Index 4 | . . . . . . . . . . . . . . . . 1 . . . . 1 . . . . . . . 1 1 . . Terminal Index 8 | . 1 . . . . 1 . . . . . . . . . 1 . . . . 1 . . . . . 1 . . 1 1 1 Fabricator Index 5 | . . . . . . 1 . . . . . . . . . . . . . . . . . . . 1 . 1 . . 1 1 Repair Station Index 1 | . . . . . . . . . . . . . . . . . . . . . . . . . . . . . . . 1 . Garrison Index 1 | . . . . . . . . . . . . . . . . . . . . . 1 . . . . . . . . . . . Alert Level 12 | . . . . . . 1 . . . . . . . . . 2 . . . . 2 . . . . . . . 2 3 1 1 Unreport Threat 18 | . 1 . . . . 2 . . . . 3 . . . . . . . . . . . . . . 1 2 . 3 4 1 1 Locate Traps 32 | . 2 . . . . 5 . . . . 5 . . . . 5 . . . . 1 . . . . 2 1 2 . 4 3 2 Disarm Traps 1 | . . . . . . 1 . . . . . . . . . . . . . . . . . . . . . . . . . . Reprogram Traps 7 | . 1 . . . . . . . . . 1 . . . . . . . . . . . . . . 1 . . . 3 . 1 Security Status 3 | . . . . . . . . . . . 1 . . . . 1 . . . . . . . . . . . . 1 . . . Patrol Status 1 | . . . . . . . . . . . . . . . . . . . . . . . . . . . . . . . . 1 Recall Investigation 8 | . . . . . . . . . . . 2 . . . . 2 . . . . . . . . . 3 . . . 1 . . Recall Extermination 4 | . . . . . . . . . . . . . . . . . . . . . . . . . . 1 1 . 1 1 . . Recall Reinforcements 11 | . . . . . . . . . . . 2 . . . . . . . . . 1 . . . . 3 . 1 . 3 1 . Recall Assault 1 | . . . . . . . . . . . . . . . . . . . . . . . . . . . . . . 1 . . Hauler Manifests 8 | . 1 . . . 1 1 . . . . 1 . . . . 1 . . . . 1 . . . . . . . 1 1 . . Zone Layout 23 | . . . . . 1 1 . . . . 3 . . . . 1 . . . . 1 . . . . 2 2 1 2 5 3 1 Protovariant Controls 1 | . . . . . . . . . . . . . . . . . . . . . . . . . . . . . 1 . . . Fabricator Hacks 25 | . . . . . . 4 . . . . 6 . . . . 6 . . . . 2 . . . . 4 . 1 2 . . . Network Status 6 | . . . . . . 2 . . . . 1 . . . . 1 . . . . 1 . . . . . . 1 . . . . Load Schematic 8 | . . . . . . . . . . . 2 . . . . 2 . . . . . . . . . 3 . . 1 . . . Build 11 | . . . . . . 2 . . . . 3 . . . . 3 . . . . 1 . . . . 1 . . 1 . . . Repair Station Hacks 41 | . . . . . 4 8 . . . . 3 . . . . 2 . . . . 2 . . . . 3 5 1 4 1 5 3 Scan Component 17 | . . . . . 2 4 . . . . 1 . . . . 1 . . . . 1 . . . . 1 3 . 1 . 2 1 Repair 16 | . . . . . 2 4 . . . . 1 . . . . 1 . . . . 1 . . . . 1 2 . 1 . 2 1 Refit 8 | . . . . . . . . . . . 1 . . . . . . . . . . . . . . 1 . 1 2 1 1 1 Recycling Unit Hacks 21 | . 1 . . . 2 3 . . . . 6 . . . . . . . . . 5 . . . . . . 4 . . . . Report Inventory 15 | . 1 . . . 1 3 . . . . 4 . . . . . . . . . 3 . . . . . . 3 . . . . Retrieve Components 6 | . . . . . 1 . . . . . 2 . . . . . . . . . 2 . . . . . . 1 . . . . Scanalyzer 53 | . . . . . 2 2 . . . . . . . . . 4 . . . . . . . . . 14 9 8 5 6 3 . Insert Component 31 | . . . . . 1 1 . . . . . . . . . 2 . . . . . . . . . 7 6 3 3 5 3 . Analyze 22 | . . . . . 1 1 . . . . . . . . . 2 . . . . . . . . . 7 3 5 2 1 . . Garrison Access Hacks 17 | . . . . . 1 2 . . . . 1 . . . . 3 . . . . 3 . . . . 1 1 2 1 1 1 . Seal Access 16 | . . . . . 1 2 . . . . 1 . . . . 2 . . . . 3 . . . . 1 1 2 1 1 1 . Coupler Status 1 | . . . . . . . . . . . . . . . . 1 . . . . . . . . . . . . . . . . Unauthorized Hacks 141 | . 5 . . . 6 18 . . . . 19 . . . . 21 . . . . 11 . . . . 8 6 4 9 17 9 8 Terminals 101 | . 4 . . . 3 9 . . . . 7 . . . . 17 . . . . 8 . . . . 4 6 2 7 17 9 8 Track 16 | . 1 . . . 1 1 . . . . 1 . . . . 2 . . . . . . . . . . . . 2 3 2 3 Assimilate 25 | . . . . . . 1 . . . . 1 . . . . 6 . . . . 2 . . . . 3 3 1 3 2 2 1 Botnet 46 | . 3 . . . 2 5 . . . . 5 . . . . 8 . . . . 4 . . . . 1 3 1 2 5 4 3 Disrupt 10 | . . . . . . 1 . . . . . . . . . . . . . . 1 . . . . . . . . 6 1 1 Operators 4 | . . . . . . 1 . . . . . . . . . 1 . . . . 1 . . . . . . . . 1 . . Fabricators 28 | . . . . . . 7 . . . . 9 . . . . 3 . . . . 3 . . . . 2 . 2 2 . . . Report 2 | . . . . . . 1 . . . . 1 . . . . . . . . . . . . . . . . . . . . . Prioritize 4 | . . . . . . . . . . . 2 . . . . 2 . . . . . . . . . . . . . . . . Liberate 8 | . . . . . . 3 . . . . 2 . . . . . . . . . 1 . . . . . . 1 1 . . . Fabnet 12 | . . . . . . 3 . . . . 4 . . . . 1 . . . . 2 . . . . . . 1 1 . . . Recompile 2 | . . . . . . . . . . . . . . . . . . . . . . . . . . 2 . . . . . . Repair Stations . | . . . . . . . . . . . . . . . . . . . . . . . . . . . . . . . . . Recycling Units 6 | . 1 . . . 2 2 . . . . 1 . . . . . . . . . . . . . . . . . . . . . Reject 2 | . . . . . 1 1 . . . . . . . . . . . . . . . . . . . . . . . . . . Recyclers 3 | . . . . . 1 1 . . . . 1 . . . . . . . . . . . . . . . . . . . . . Tunnel 1 | . 1 . . . . . . . . . . . . . . . . . . . . . . . . . . . . . . . Scanalyzers 2 | . . . . . 1 . . . . . . . . . . . . . . . . . . . . 1 . . . . . . Extract 2 | . . . . . 1 . . . . . . . . . . . . . . . . . . . . 1 . . . . . . Garrison Access 4 | . . . . . . . . . . . 2 . . . . 1 . . . . . . . . . 1 . . . . . . Reprogram 3 | . . . . . . . . . . . 1 . . . . 1 . . . . . . . . . 1 . . . . . . Watchers 1 | . . . . . . . . . . . 1 . . . . . . . . . . . . . . . . . . . . . Data Cores Recovered . | . . . . . . . . . . . . . . . . . . . . . . . . . . . . . . . . . Used . | . . . . . . . . . . . . . . . . . . . . . . . . . . . . . . . . . Hacking Detections 156 | . 6 . . . 8 16 . . . . 22 . . . . 16 . . . . 12 . . . . 14 13 8 12 13 8 8 Full Trace Events 15 | . 1 . . . 1 2 . . . . 2 . . . . 2 . . . . 2 . . . . 1 1 . 1 . . 2 Feedback Events 3 | . . . . . . 1 . . . . . . . . . . . . . . . . . . . . 1 . . . . 1 Corruption 2 | . . . . . . 1 . . . . . . . . . . . . . . . . . . . . . . . . . 1 Hackware Fried 1 | . . . . . . . . . . . . . . . . . . . . . . . . . . . 1 . . . . . Feedback Blocked . | . . . . . . . . . . . . . . . . . . . . . . . . . . . . . . . . . Robot Schematics Acquired 11 | . . . . . . 1 . . 4 . . . . 6 . . . . . . . . . . . . . . . . . . Robots Built 5 | . . . . . . 2 . . . . . . . . . 3 . . . . . . . . . . . . . . . . Authchips . | . . . . . . . . . . . . . . . . . . . . . . . . . . . . . . . . . Time 200 | . . . . . . 116 . . . . . . . . . 84 . . . . . . . . . . . . . . . . Total Robot Build Rating 24 | . . . . . . 6 . . . . . . . . . 18 . . . . . . . . . . . . . . . . Part Schematics Acquired 75 | . . . . . 10 2 . . 15 . 4 . . 9 . 4 . . . . 3 . . 4 . 12 3 4 4 1 . . Parts Built 11 | . . . . . . 1 . . . . 4 . . . . 3 . . . . 1 . . . . 1 . . 1 . . . Authchips 2 | . . . . . . . . . . . . . . . . . . . . . . . . . . 1 . . 1 . . . Time 701 | . . . . . . 152 . . . . 201 . . . . 178 . . . . 46 . . . . 62 . . 62 . . . Total Part Build Rating 67 | . . . . . . 5 . . . . 22 . . . . 17 . . . . 9 . . . . 7 . . 7 . . . Parts Repaired 15 | . . . . . 2 4 . . . . 1 . . . . 1 . . . . 1 . . . . . 2 . 1 . 2 1 Time 708 | . . . . . 76 187 . . . . 51 . . . . 30 . . . . 62 . . . . 44 80 . 108 . 48 22 Parts Recycled . | . . . . . . . . . . . . . . . . . . . . . . . . . . . . . . . . . Recycled Matter . | . . . . . . . . . . . . . . . . . . . . . . . . . . . . . . . . . Retrieved Matter . | . . . . . . . . . . . . . . . . . . . . . . . . . . . . . . . . . Retrieved Components 15 | . . . . . 1 . . . . . 4 . . . . . . . . . 7 . . . . . . 3 . . . . Parts Scanalyzed 18 | . . . . . 1 1 . . . . . . . . . 2 . . . . . . . . . 5 3 3 2 1 . . Part Schematics Acquired 18 | . . . . . 1 1 . . . . . . . . . 2 . . . . . . . . . 5 3 3 2 1 . . Parts Damaged 1 | . . . . . . . . . . . . . . . . . . . . . . . . . . 1 . . . . . . Bothacking | -11 -10 -10 -10 -9 -8 -7 -7 -7 -7 -6 -6 -6 -6 -6 -5 -5 -5 -5 -5 -4 -4 -4 -4 -4 -3 -3 -3 -2 -2 -2 -1 -1 ------------ Run | Scr Mat Min Exi Min Mat Fac Low Low Zio Pro Fac Low Low Dat Pro Fac Upp Upp War Pro Fac Upp Upp Zhi Pro Res Qua Res Tes Sec Acc Com Used RIF Installer . | . . . . . . . . . . . . . . . . . . . . . . . . . . . . . . . . . Robots Hacked 19 | . . . . . . . . . . 1 1 1 . . 1 2 1 . 5 1 1 . . . . 3 1 . . . . 1 Non-combat . | . . . . . . . . . . . . . . . . . . . . . . . . . . . . . . . . . Combat 19 | . . . . . . . . . . 1 1 1 . . 1 2 1 . 5 1 1 . . . . 3 1 . . . . 1 Robot Hacks Applied . | . . . . . . . . . . . . . . . . . . . . . . . . . . . . . . . . . Relay Couplers Released . | . . . . . . . . . . . . . . . . . . . . . . . . . . . . . . . . . Fabnet Peak Effective % 15 | . . . . . . . . . . 9 9 9 9 9 15 15 15 15 15 7 7 7 7 7 7 7 7 2 2 2 6 6 Autooverrided 19 | . . . . . . . . . . 1 1 1 . . 1 2 1 . 5 1 1 . . . . 3 1 . . . . 1 Robots Rewired 5 | . . . . . . . . . . . 2 . . . . . . . 3 . . . . . . . . . . . . . Allies Hacked 3 | . . . . . . . . . . . . . . . . . . . 1 . . . . . . 1 . . 1 . . . Hacks Repelled . | . . . . . . . . . . . . . . . . . . . . . . . . . . . . . . . . . Allies | -11 -10 -10 -10 -9 -8 -7 -7 -7 -7 -6 -6 -6 -6 -6 -5 -5 -5 -5 -5 -4 -4 -4 -4 -4 -3 -3 -3 -2 -2 -2 -1 -1 -------- Run | Scr Mat Min Exi Min Mat Fac Low Low Zio Pro Fac Low Low Dat Pro Fac Upp Upp War Pro Fac Upp Upp Zhi Pro Res Qua Res Tes Sec Acc Com Total Allies 61 | . . . . . . 3 . . . 1 4 1 . . 2 10 1 . 9 1 8 . . . . 9 2 1 4 1 2 2 Largest Group 6 | . . . . . . 2 2 . . . 2 2 1 1 2 5 1 . 6 3 3 . . . . 3 1 1 2 1 1 2 Highest-Rated Group 289 | . . . . . . 48 39 . . . 81 39 10 10 106 289 30 . 261 134 138 . . . . 145 45 45 128 26 64 103 Highest-Rated Ally 137 | . . . . . . 24 24 . . . 41 29 10 10 96 137 30 . 82 47 47 . . . . 56 45 45 64 26 64 58 Total Orders 11 | . . . . . . . . . . . 2 2 1 . 2 2 . . . 2 . . . . . . . . . . . . STAY 6 | . . . . . . . . . . . 1 1 1 . 1 1 . . . 1 . . . . . . . . . . . . FOLLOW 5 | . . . . . . . . . . . 1 1 . . 1 1 . . . 1 . . . . . . . . . . . . Ally Attacks 125 | . . . . . . 2 12 . . 1 . 3 . . 17 25 2 . 16 6 16 . . . . 12 2 . 7 . 1 3 Total Damage 3608 | . . . . . . 49 142 . . 15 . 58 . . 595 868 100 . 433 182 414 . . . . 462 45 . 173 . . 72 Kills 16 | . . . . . . . 2 . . . . . . . 3 6 . . 1 . 2 . . . . 2 . . . . . . Allies Corrupted 1 | . . . . . . . . . . . . . . . . . . . . . . . . . . 1 . . . . . . Allies Melted 2 | . . . . . . . . . . . . . . . . 1 1 . . . . . . . . . . . . . . . Intel | -11 -10 -10 -10 -9 -8 -7 -7 -7 -7 -6 -6 -6 -6 -6 -5 -5 -5 -5 -5 -4 -4 -4 -4 -4 -3 -3 -3 -2 -2 -2 -1 -1 ------- Run | Scr Mat Min Exi Min Mat Fac Low Low Zio Pro Fac Low Low Dat Pro Fac Upp Upp War Pro Fac Upp Upp Zhi Pro Res Qua Res Tes Sec Acc Com Robot Analysis Total 19 | . 2 . . . . 1 . . . . . . . . . 7 . . . . 1 . . 4 . . . . 3 1 . . Derelict Logs Recovered 20 | . . 2 . . . . 2 2 2 3 . 2 . . 2 . 1 1 . 1 . . 2 . . . . . . . . . Drone Launches . | . . . . . . . . . . . . . . . . . . . . . . . . . . . . . . . . . Drone Recoveries . | . . . . . . . . . . . . . . . . . . . . . . . . . . . . . . . . . Exploration | -11 -10 -10 -10 -9 -8 -7 -7 -7 -7 -6 -6 -6 -6 -6 -5 -5 -5 -5 -5 -4 -4 -4 -4 -4 -3 -3 -3 -2 -2 -2 -1 -1 ------------- Run | Scr Mat Min Exi Min Mat Fac Low Low Zio Pro Fac Low Low Dat Pro Fac Upp Upp War Pro Fac Upp Upp Zhi Pro Res Qua Res Tes Sec Acc Com Turns Passed 17556 | 47 586 714 254 312 1678 796 232 242 234 338 782 344 172 28 331 858 280 372 591 375 1008 267 344 62 259 986 606 910 739 1210 692 907 Spaces Moved 32757 | 38 447 499 178 156 835 1704 678 756 791 947 2052 1212 606 82 1031 2238 857 1098 929 1105 2154 620 753 137 724 1734 1267 1652 1240 2069 998 1170 Core 10 | 2 . . . . . . . . . . . . . . . . . . . . . . . . . . . . . . 8 . Treads 35 | . 1 4 . 13 17 . . . . . . . . . . . . . . . . . . . . . . . . . . . Legs . | . . . . . . . . . . . . . . . . . . . . . . . . . . . . . . . . . Wheels 2164 | 36 446 495 178 143 818 . . . . . . . . . . . . . . . . . . . . . . . . . . 48 Hover 404 | . . . . . . 1 . . . . . . . . . . . . . . . . . . . . . . . . . 403 Flight 30144 | . . . . . . 1703 678 756 791 947 2052 1212 606 82 1031 2238 857 1098 929 1105 2154 620 753 137 724 1734 1267 1652 1240 2069 990 719 Fastest Speed 22 | 50 95 125 125 125 95 28 29 29 29 29 25 25 25 25 25 22 29 29 29 29 29 34 34 34 34 24 22 23 23 25 25 22 Average Speed 34 | 86 107 125 142 142 133 28 29 29 29 29 25 25 25 25 25 28 29 29 29 29 32 34 34 34 34 27 24 23 24 25 28 37 Slowest Speed 320 | 95 160 240 155 320 237 170 101 29 29 29 97 27 25 25 27 99 29 29 29 29 108 34 34 34 34 104 104 26 28 105 250 226 Overloaded Moves . | . . . . . . . . . . . . . . . . . . . . . . . . . . . . . . . . . Propulsion Burnouts . | . . . . . . . . . . . . . . . . . . . . . . . . . . . . . . . . . Robots Hopped 108 | . . . . . . 2 . . . . 8 . . . . 4 1 . 4 . 7 . . . . 20 9 11 3 25 10 4 Cave-ins Triggered . | . . . . . . . . . . . . . . . . . . . . . . . . . . . . . . . . . Teleports 2 | . . . . . . . . . . . . . . . . . . . . . . . . . . . . . . 1 1 . Exploration Rate (%) 68 | 3 78 92 57 29 59 39 68 87 84 84 50 98 68 68 97 45 88 88 89 82 46 76 88 61 92 66 92 32 88 89 28 35 Regions Visited 32 Branch Regions 23 Pre-discovered Areas 14 | . 1 1 1 . . . . . 2 . . 2 . 1 . . 1 1 . . . . 1 3 . . . . . . . . Known Exits Taken 27 | . . . . . 1 1 1 1 1 1 1 1 1 1 1 1 1 1 1 1 1 1 1 1 1 1 1 1 1 1 1 . Unknown Exits Taken 5 | 1 1 1 1 1 . . . . . . . . . . . . . . . . . . . . . . . . . . . . Scrap Searched 52 | . . 2 . . . . 4 10 4 2 . 3 9 . 2 . 5 4 . 2 . 1 1 . 3 . . . . . . . Spaces Dug 466 | . . 11 . 9 19 22 1 1 . 6 22 4 2 . . 30 4 4 . 5 37 9 4 . 4 49 17 65 34 11 30 66 Terrain Destroyed 778 | . 24 22 . 47 19 46 1 1 . 6 39 4 2 . . 30 4 4 . 5 37 10 4 . 4 153 32 65 34 14 30 141 Melee 324 | . . . . . 7 22 1 1 . 6 22 4 2 . . 30 . 2 . 4 34 5 3 . 3 40 16 62 23 7 18 12 Projectile 85 | . . . . 1 1 . . . . . . . . . . . 4 2 . 1 3 5 1 . 1 12 1 3 11 7 12 20 AOE 369 | . 24 22 . 46 11 24 . . . . 17 . . . . . . . . . . . . . . 101 15 . . . . 109 Terrain Rammed . | . . . . . . . . . . . . . . . . . . . . . . . . . . . . . . . . . Walls Destroyed . | . . . . . . . . . . . . . . . . . . . . . . . . . . . . . . . . . Machines Disabled . | . . . . . . . . . . . . . . . . . . . . . . . . . . . . . . . . . Actions | -11 -10 -10 -10 -9 -8 -7 -7 -7 -7 -6 -6 -6 -6 -6 -5 -5 -5 -5 -5 -4 -4 -4 -4 -4 -3 -3 -3 -2 -2 -2 -1 -1 --------- Run | Scr Mat Min Exi Min Mat Fac Low Low Zio Pro Fac Low Low Dat Pro Fac Upp Upp War Pro Fac Upp Upp Zhi Pro Res Qua Res Tes Sec Acc Com Total 37314 | 49 511 555 179 205 1188 1971 703 777 792 1000 2240 1239 623 88 1091 2391 879 1145 1244 1152 2357 663 832 149 730 2092 1476 1984 1562 2661 1322 1464 Wait 2636 | . 9 29 . 18 79 158 11 6 . 48 66 11 5 6 45 74 10 38 293 40 104 33 74 . 2 192 118 204 199 482 230 52 Move 32523 | 37 446 498 177 155 834 1699 677 755 790 946 2035 1211 605 81 1030 2229 854 1097 921 1104 2141 619 752 136 723 1694 1249 1629 1233 2026 978 1162 Hop 94 | . . . . . . 2 . . . . 8 . . . . 4 1 . 3 . 5 . . . . 19 8 11 3 17 9 4 Pick Up 219 | 6 13 2 1 1 33 13 . 5 . . 12 . 2 . . 9 1 2 3 1 11 . . 2 . 19 12 7 11 20 13 20 Fast Attach 138 | 6 3 . . 1 27 6 2 1 . . 7 2 1 . 1 11 . . . . 11 . . 3 . 7 3 8 6 8 5 19 Attach 163 | . 2 2 . 3 13 12 3 2 . . 3 . 2 . 1 4 . . . . 2 . . . . 16 7 6 12 18 10 45 Detach 79 | . 1 . . . 13 8 3 . . . 3 . 1 . 1 . . . . . 2 . . . . 4 2 6 11 6 4 14 Swap 217 | . 6 9 1 4 29 8 1 1 1 . 14 2 2 1 4 5 7 2 6 1 9 2 1 3 1 22 9 7 11 21 13 14 Drop 238 | . 6 . . . 38 25 1 5 . . 14 2 3 . 1 13 1 2 3 1 14 . . 4 . 16 13 14 13 19 10 20 Fire 283 | . 25 11 . 23 81 5 2 1 . . 1 . . . . . 4 2 . 1 5 4 1 . 1 22 2 3 14 14 12 49 Melee 624 | . . 4 . . 41 35 3 1 1 6 37 8 2 . 8 42 . 2 . 4 53 5 4 1 3 63 35 86 47 30 38 65 Ram . | . . . . . . . . . . . . . . . . . . . . . . . . . . . . . . . . . Kick . | . . . . . . . . . . . . . . . . . . . . . . . . . . . . . . . . . Crush . | . . . . . . . . . . . . . . . . . . . . . . . . . . . . . . . . . Escape Stasis 71 | . . . . . . . . . . . 30 . . . . . . . . . . . . . . 18 18 3 2 . . . Rewire 25 | . . . . . . . . . . . 10 . . . . . . . 15 . . . . . . . . . . . . . Trap 4 | . . . . . . . . . . . . 3 . . . . 1 . . . . . . . . . . . . . . . Miscellaneous . | . . . . . . . . . . . . . . . . . . . . . . . . . . . . . . . . . Route ------- -11/Scrapyard -10/Materials (discovered 5 exits: [*Mat x3] / [*Min x2]) -10/Mines (discovered 3 exits: [*Mat x2] / *Exi) -10/Exiles (discovered 2 exits: [*Min x2]) -9/Mines (discovered 2 exits: *Mat x2) -8/Materials (discovered 3 exits: *Fac x3) -7/Factory (discovered 3 exits: *Fac / *Low x2) -7/Lower Caves -7/Lower Caves (discovered 2 exits: *Fac / *Zio) -7/Zion -6/Proximity Caves -6/Factory (discovered 4 exits: *Fac x2 / *Low x2) -6/Lower Caves -6/Lower Caves (discovered 2 exits: *Fac / *Dat) -6/Data Miner -5/Proximity Caves -5/Factory (discovered 4 exits: *Upp x2 / *Ext x2) -5/Upper Caves -5/Upper Caves (discovered 2 exits: *Fac / *War) -5/Warlord -4/Proximity Caves -4/Factory (discovered 4 exits: *Res / *Upp x2 / Arm) -4/Upper Caves -4/Upper Caves (discovered 2 exits: *Res / *Zhi) -4/Zhirov -3/Proximity Caves -3/Research (discovered 4 exits: *Res x2 / *Qua x2) -3/Quarantine -2/Research (discovered 4 exits: *Acc x2 / *Tes x2) -2/Testing (discovered 2 exits: *Acc / *Sec) -2/Section 7 -1/Access -1/Command (discovered 2 exits: Sur x2) History --------- Turn | Location | Event 2 | -11/Scrapyard | Met Revision 17 27 | -11/Scrapyard | Discovered new exit (range 16) 48 | -11/Scrapyard | Entered Materials 58 | -10/Materials | Discovered new exit (range 16) 215 | -10/Materials | Discovered new exit (range 3) 306 | -10/Materials | Build established: Mutant 429 | -10/Materials | Discovered new exit (range 8) 498 | -10/Materials | Discovered new exit (range 12) 608 | -10/Materials | Discovered new exit (range 9) 634 | -10/Materials | Entered Mines 677 | -10/Mines | Discovered new exit (range 9) 833 | -10/Mines | Learned Materials emergency access door positions 869 | -10/Mines | Deemed a non-threat by the Exiles lab entrance 869 | -10/Mines | Discovered new exit (range 5) 977 | -10/Mines | Learned location of Zion (-7) 1116 | -10/Mines | Discovered new exit (range 14) 1239 | -10/Mines | Excavation squad dispatched 1239 | -10/Mines | A large section of the Mines collapsed 1348 | -10/Mines | Entered Exiles 1365 | -10/Exiles | Discovered new exit (range 15) 1380 | -10/Exiles | Met 8R-AWN 1401 | -10/Exiles | Met EX-HEX 1473 | -10/Exiles | Met EX-DEC 1590 | -10/Exiles | Discovered new exit (range 10) 1602 | -10/Exiles | Entered Mines 1621 | -9/Mines | Assembled infested the area 1626 | -9/Mines | Assisted by a Guerilla fighting off Assembled 1717 | -9/Mines | Core integrity fell below 50% 1740 | -9/Mines | Discovered new exit (range 9) 1745 | -9/Mines | Lost 4 parts (2n2w) 1748 | -9/Mines | Destroyed 12 combat bots 1786 | -9/Mines | Discovered new exit (range 7) 1914 | -9/Mines | Entered Materials 1914 | -8/Materials | Evolved 4 slots: Propulsion x2, Utility x2 2527 | -8/Materials | Lost 3 parts (1p2u) 2695 | -8/Materials | Lost 3 parts (3n) 2874 | -8/Materials | Repaired Arm. Wheel 3020 | -8/Materials | Lost 3 parts (1p2n) 3147 | -8/Materials | Discovered new exit (range 4) 3274 | -8/Materials | Identified exit to Factory 3286 | -8/Materials | Repaired Gauss Rifle? 3450 | -8/Materials | Build established: Scavenger-Mutant 3592 | -8/Materials | Entered Factory 3592 | -7/Factory | Evolved 2 slots: Utility x2 3766 | -7/Factory | Identified exit to Lower Caves 4015 | -7/Factory | Build established: Hacker-Scout 4032 | -7/Factory | Repaired Imp. Sensor Array? 4081 | -7/Factory | Repaired Hvy. Flail? 4141 | -7/Factory | Fabricated X-57 Shotgunner (x2) 4165 | -7/Factory | Discovered new exit (range 15) 4170 | -7/Factory | Identified exit to Factory 4190 | -7/Factory | Fabricated Gui. EMP Blaster (x1) 4235 | -7/Factory | Repaired Imp. Flight Unit 4297 | -7/Factory | Repaired Imp. VTOL Module 4388 | -7/Factory | Entered Lower Caves 4388 | -7/Lower Caves | Accompanied by 2 allies 4505 | -7/Lower Caves | Learned location of 1 exit from Proximity Caves 4569 | -7/Lower Caves | Discovered new exit (range 11) 4619 | -7/Lower Caves | Identified exit to Lower Caves 4620 | -7/Lower Caves | Entered another Lower Caves area 4647 | -7/Lower Caves | Discovered exit to Factory (range 13) 4792 | -7/Lower Caves | Learned Factory interactive machine intel 4804 | -7/Lower Caves | Learned Factory terminal intel 4824 | -7/Lower Caves | Discovered new exit (range 9) 4826 | -7/Lower Caves | Identified exit to Zion 4862 | -7/Lower Caves | Entered Zion 4880 | -7/Zion | Received a hallucinogenic algorithm 4887 | -7/Zion | Discovered new exit (range 9) 4889 | -7/Zion | Identified exit to Proximity Caves 4907 | -7/Zion | Learned Factory stockpile data 4924 | -7/Zion | Given the Hacking Drone Bay 5013 | -7/Zion | Learned location of Data Miner (-6) 5096 | -7/Zion | Entered Proximity Caves 5099 | -6/Proximity Caves | Learned Factory garrison access intel 5257 | -6/Proximity Caves | Learned Factory non-interactive machine intel 5434 | -6/Proximity Caves | Entered Factory 5434 | -6/Factory | Evolved 2 slots: Propulsion x1, Utility x1 5435 | -6/Factory | Identified exit to Lower Caves 5437 | -6/Factory | Loaded intel: 277 non-interactive machine locations 5438 | -6/Factory | Loaded intel: 52 interactive machine locations 5439 | -6/Factory | Loaded intel: 26 terminal locations 5440 | -6/Factory | Loaded intel: 4 garrison access locations 5452 | -6/Factory | Discovered new exit (range 15) 5526 | -6/Factory | Repaired Imp. Flight Unit 5927 | -6/Factory | Fabricated Energy Well (x2) 5979 | -6/Factory | Discovered new exit (range 16) 6041 | -6/Factory | Fabricated Adv. Hacking Suite (x1) 6142 | -6/Factory | Fabricated Adv. Hacking Suite (x1) 6216 | -6/Factory | Entered Lower Caves 6216 | -6/Lower Caves | Accompanied by 1 ally 6338 | -6/Lower Caves | Learned location of 1 exit from Factory 6408 | -6/Lower Caves | Learned Factory stockpile data 6409 | -6/Lower Caves | Learned location of Extension (-5) 6409 | -6/Lower Caves | Learned location of Armory (-4) 6409 | -6/Lower Caves | Learned Armory security intel 6409 | -6/Lower Caves | Learned Research garrison access intel 6418 | -6/Lower Caves | Discovered new exit (range 3) 6418 | -6/Lower Caves | Identified exit to Lower Caves 6560 | -6/Lower Caves | Entered another Lower Caves area 6560 | -6/Lower Caves | Accompanied by 1 ally 6563 | -6/Lower Caves | Encountered a Warlord checkpoint 6582 | -6/Lower Caves | Discovered new exit (range 16) 6711 | -6/Lower Caves | Spotted B-75 Beast 6712 | -6/Lower Caves | Discovered new exit (range 9) 6720 | -6/Lower Caves | Identified exit to Data Miner 6732 | -6/Lower Caves | Entered Data Miner 6732 | -6/Data Miner | Accompanied by 1 ally 6732 | -6/Data Miner | Discovered new exit (range 6) 6735 | -6/Data Miner | Identified exit to Proximity Caves 6739 | -6/Data Miner | Met Data Miner 6743 | -6/Data Miner | Learned location of Section 7 (-2) 6743 | -6/Data Miner | Acquired the access code to Warlord's prototype stash 6747 | -6/Data Miner | Received God Mode back door access code from Data Miner 6760 | -6/Data Miner | Entered Proximity Caves 6760 | -5/Proximity Caves | Accompanied by 1 ally 6811 | -5/Proximity Caves | Attracted the attention of an 0b10 checkpoint 6812 | -5/Proximity Caves | Escorted by Enhanced Grunt 6865 | -5/Proximity Caves | Learned 4 Factory zone layouts 6873 | -5/Proximity Caves | Learned Factory trap positions 6873 | -5/Proximity Caves | Spotted B-75 Beast 7016 | -5/Proximity Caves | Discovered new exit (range 5) 7019 | -5/Proximity Caves | Identified exit to Factory 7091 | -5/Proximity Caves | Entered Factory 7091 | -5/Factory | Accompanied by 1 ally 7091 | -5/Factory | Evolved 2 slots: Power x1, Propulsion x1 7092 | -5/Factory | Identified exit to Upper Caves 7092 | -5/Factory | Identified exit to Extension 7095 | -5/Factory | Loaded intel: 100 trap records 7200 | -5/Factory | Fabricated B-60 Warrior? 7527 | -5/Factory | Spotted B-75 Beast 7567 | -5/Factory | Lost 5 parts (2p3n) 7619 | -5/Factory | Fabricated Nuclear Pulse Array (x2) 7697 | -5/Factory | Repaired Imp. VTOL Module? 7786 | -5/Factory | Local machine network offline 7801 | -5/Factory | Garrison activated, responded to threat 7846 | -5/Factory | Fabricated Lgt. Regenerative Plating (x1) 7949 | -5/Factory | Entered Upper Caves 8194 | -5/Upper Caves | Discovered new exit (range 13) 8198 | -5/Upper Caves | Identified exit to Upper Caves 8229 | -5/Upper Caves | Entered another Upper Caves area 8234 | -5/Upper Caves | Discovered new exit (range 12) 8297 | -5/Upper Caves | Attracted the attention of an 0b10 checkpoint 8473 | -5/Upper Caves | Learned location of Warlord (-5) 8555 | -5/Upper Caves | Discovered new exit (range 8) 8557 | -5/Upper Caves | Identified exit to Warlord 8601 | -5/Upper Caves | Entered Warlord 8727 | -5/Warlord | Found Prototype Special Weapon 8728 | -5/Warlord | Identified RU-N14's Throwing Claymores v3 8790 | -5/Warlord | Warlord's base attacked by MAIN.C 8838 | -5/Warlord | Found Prototype Energy Cannon 8839 | -5/Warlord | Identified Vortex Cannon 9140 | -5/Warlord | Warlord forces counterattacked 9147 | -5/Warlord | Opened side exit 9154 | -5/Warlord | Discovered new exit (range 9) 9156 | -5/Warlord | Identified exit to Proximity Caves 9192 | -5/Warlord | Entered Proximity Caves 9192 | -4/Proximity Caves | Accompanied by 2 allies 9193 | -4/Proximity Caves | Learned location of 1 exit from Upper Caves 9413 | -4/Proximity Caves | Discovered new exit (range 13) 9521 | -4/Proximity Caves | Identified exit to Factory 9567 | -4/Proximity Caves | Entered Factory 9567 | -4/Factory | Accompanied by 1 ally 9567 | -4/Factory | Evolved 2 slots: Utility x2 9586 | -4/Factory | Identified exit to Upper Caves 9586 | -4/Factory | Identified exit to Armory 9657 | -4/Factory | Repaired Centrium Wheel? 9731 | -4/Factory | Found Prototype Processor 9731 | -4/Factory | Identified Exp. Signal Interpreter 9869 | -4/Factory | Allied Derelicts emerged from ambush trap array 9901 | -4/Factory | Spotted B-86 Titan 9999 | -4/Factory | Discovered new exit (range 21) 10001 | -4/Factory | Fabricated Enh. Nova Cannon? 10375 | -4/Factory | Central database locked down 10572 | -4/Factory | Local machine network offline 10575 | -4/Factory | Entered Upper Caves 10576 | -4/Upper Caves | Identified exit to Upper Caves 10699 | -4/Upper Caves | Spotted B-86 Titan 10770 | -4/Upper Caves | Encountered a Warlord checkpoint 10842 | -4/Upper Caves | Entered another Upper Caves area 10871 | -4/Upper Caves | Discovered new exit (range 6) 10872 | -4/Upper Caves | Identified exit to Research 10996 | -4/Upper Caves | Learned Research terminal intel 11013 | -4/Upper Caves | Discovered new exit (range 17) 11085 | -4/Upper Caves | Learned location of Testing (-2) 11185 | -4/Upper Caves | Identified exit to Zhirov 11186 | -4/Upper Caves | Entered Zhirov 11186 | -4/Zhirov | Discovered new exit (range 3) 11188 | -4/Zhirov | Identified exit to Proximity Caves 11193 | -4/Zhirov | Met Zhirov 11199 | -4/Zhirov | Learned location of Quarantine (-3) 11199 | -4/Zhirov | Learned location of Command (-1) 11202 | -4/Zhirov | Zhirov requested help retrieving the SGEMP Prototype 11207 | -4/Zhirov | Found Alien Artifact 11207 | -4/Zhirov | Identified Integrated Dissipator 11207 | -4/Zhirov | Installed Integrated Dissipator, increased core heat dissipation (+20) 11215 | -4/Zhirov | Found Alien Artifact 11248 | -4/Zhirov | Entered Proximity Caves 11506 | -3/Proximity Caves | Discovered exit to Research (range 6) 11507 | -3/Proximity Caves | Entered Research 11507 | -3/Research | Evolved 2 slots: Propulsion x1, Utility x1 11508 | -3/Research | Loaded intel: 20 terminal locations 11509 | -3/Research | Loaded intel: 4 garrison access locations 11583 | -3/Research | Identified exit to Quarantine 11646 | -3/Research | Identified Transdimensional Reconstructor 11657 | -3/Research | Discovered new exit (range 13) 11657 | -3/Research | Central database locked down 11757 | -3/Research | Spotted B-86 Titan 11858 | -3/Research | Incoming investigation squad redirected 11907 | -3/Research | Incoming investigation squad redirected 12008 | -3/Research | Found Enh. Force Lance 12068 | -3/Research | Fabricated Exp. Hacking Suite? 12084 | -3/Research | Found Prototype Processor 12095 | -3/Research | Identified Spectral Analyzer 12107 | -3/Research | Spotted B-90 Cyclops 12165 | -3/Research | Spotted B-86 Titan 12249 | -3/Research | Found Fusion Bomb Launcher 12257 | -3/Research | Search patrols dispatched 12272 | -3/Research | Discovered new exit (range 9) 12274 | -3/Research | Identified exit to Research 12389 | -3/Research | Destroyed 7 combat bots 12440 | -3/Research | Cargo convoy interrupted 12456 | -3/Research | Garrison activated, responded to threat 12458 | -3/Research | Incoming assault squad redirected 12478 | -3/Research | Garrison activated, responded to threat 12479 | -3/Research | Spotted B-86 Titan 12485 | -3/Research | Local machine network offline 12493 | -3/Research | Entered Quarantine 12501 | -3/Quarantine | Found Alien Slashing Weapon 12501 | -3/Quarantine | Identified Sigix Broadsword 12516 | -3/Quarantine | Lost 5 parts (1p1n3u) 12557 | -3/Quarantine | Adv. Hacking Suite fried by hacking feedback 12577 | -3/Quarantine | Incoming investigation squad redirected 12612 | -3/Quarantine | Repaired Diametric Drive 12645 | -3/Quarantine | Repaired Impulse Thruster 12658 | -3/Quarantine | Found Alien Artifact 12669 | -3/Quarantine | Found Alien Artifact 12685 | -3/Quarantine | Identified Subatomic Replicator 12685 | -3/Quarantine | Identified Core Reset Matrix 12767 | -3/Quarantine | P-80 Master assimilated allied Director 8c 13039 | -3/Quarantine | Found Alien Artifact 13069 | -3/Quarantine | Identified Terrabomb 13099 | -3/Quarantine | Entered Research 13099 | -2/Research | Evolved 2 slots: Power x1, Propulsion x1 13107 | -2/Research | Spotted B-90 Cyclops 13210 | -2/Research | Identified exit to Testing 13312 | -2/Research | Build established: Hacker-Ninja 13562 | -2/Research | Found Exp. Hacking Suite 13731 | -2/Research | Discovered new exit (range 18) 13745 | -2/Research | Identified exit to Access 13996 | -2/Research | Discovered exit to Access (range 19) 14009 | -2/Research | Entered Testing 14030 | -2/Testing | Build established: Hacker-Scout 14079 | -2/Testing | Found Prototype Launcher 14090 | -2/Testing | Identified Point Singularity Launcher 14108 | -2/Testing | Found Prototype Energy Gun 14111 | -2/Testing | Identified Hyp. EM Gauss Rifle 14136 | -2/Testing | Found Point Singularity Launcher 14191 | -2/Testing | Spotted Striker 14229 | -2/Testing | Found Prototype Device 14248 | -2/Testing | Fabricated Exp. System Shield (x1) 14262 | -2/Testing | Identified Exp. Shock Absorption System 14292 | -2/Testing | P-80 Master assimilated allied Director 9b 14490 | -2/Testing | Scanned by Researcher 14540 | -2/Testing | Protovariant out of control (PX-N9P5FFM5HX) 14540 | -2/Testing | Unleashed a protovariant (PX-N9P5FFM5HX) 14558 | -2/Testing | Incoming investigation squad redirected 14616 | -2/Testing | Build established: Wizard-Scout 14665 | -2/Testing | Repaired Imp. Diametric Drive? 14710 | -2/Testing | Found Prototype Hackware 14710 | -2/Testing | Identified Ghost Barrier 14729 | -2/Testing | Spotted Fortress 14747 | -2/Testing | Discovered new exit (range 6) 14748 | -2/Testing | Identified exit to Section 7 14748 | -2/Testing | Entered Section 7 14750 | -2/Section 7 | Spotted S7 Guard 14765 | -2/Section 7 | Found Alien Artifact 14833 | -2/Section 7 | Spotted B-90 Cyclops 14865 | -2/Section 7 | Found Alien Artifact 14869 | -2/Section 7 | Incoming investigation squad redirected 14878 | -2/Section 7 | Spotted S7 Guard 14885 | -2/Section 7 | Spotted S7 Guard 14891 | -2/Section 7 | Found Alien Artifact 14894 | -2/Section 7 | Spotted S7 Guard 14910 | -2/Section 7 | Warped through subspace 14925 | -2/Section 7 | Identified Integrity Redistributor 14925 | -2/Section 7 | Identified Core Membrane 14925 | -2/Section 7 | Identified Core Physics Calibrator 14973 | -2/Section 7 | Installed Core Membrane, gained immunity to corruption 14998 | -2/Section 7 | Search patrols dispatched 15399 | -2/Section 7 | Found Integrity Redistributor 15433 | -2/Section 7 | Found Integrity Redistributor 15675 | -2/Section 7 | Found Alien Artifact 15709 | -2/Section 7 | Identified Integrated Mediator 15709 | -2/Section 7 | Installed Integrated Mediator, increased core attachment efficiency. 15723 | -2/Section 7 | Spotted Executioner 15723 | -2/Section 7 | Spotted Executioner 15744 | -2/Section 7 | Found Alien Reactor 15747 | -2/Section 7 | Identified Matter Drive 15757 | -2/Section 7 | Found Transdimensional Reconstructor 15766 | -2/Section 7 | Spotted Striker 15769 | -2/Section 7 | Spotted Executioner 15769 | -2/Section 7 | Spotted Executioner 15791 | -2/Section 7 | Spotted B-99 Colossus 15818 | -2/Section 7 | Found Alien Artifact 15821 | -2/Section 7 | Found Alien Artifact 15867 | -2/Section 7 | Spotted Alpha 7 15939 | -2/Section 7 | Found Integrated Dissipator 15940 | -2/Section 7 | Installed Integrated Dissipator, increased core heat dissipation (+20) 15951 | -2/Section 7 | Discovered exit to Access (range 8) 15958 | -2/Section 7 | Entered Access 15958 | -1/Access | Evolved 2 slots: Utility x1, Weapon x1 15988 | -1/Access | Identified exit to Command 16026 | -1/Access | Found Prototype Device 16039 | -1/Access | Identified LRC Matter Compressor 16039 | -1/Access | Identified LRC Insulator 16039 | -1/Access | Identified Exp. Thermal Shield 16039 | -1/Access | Installed LRC Insulator, gained EM resistance (25) 16040 | -1/Access | Installed LRC Matter Compressor, increased matter storage capacity (+125) 16084 | -1/Access | Repaired Impulse Thruster Array 16111 | -1/Access | Repaired Gravity Neutralizer 16486 | -1/Access | Found Unknown Device 16486 | -1/Access | Identified Antimissile System 16602 | -1/Access | Spotted B-99 Colossus 16612 | -1/Access | Spotted B-99 Colossus 16615 | -1/Access | Warped through subspace 16650 | -1/Access | Entered Command 16761 | -1/Command | Repaired Mic. Antimatter Reactor? 16792 | -1/Command | Phase Generator disabled 16851 | -1/Command | Used Integrity Redistributor, redistributed integrity from core (-62) 16882 | -1/Command | Identified exit to Surface 16962 | -1/Command | Spotted Combat Programmer 16962 | -1/Command | Spotted Combat Programmer 17001 | -1/Command | Used Subatomic Replicator to replicate Vortex Cannon 17014 | -1/Command | Met MAIN.C 17018 | -1/Command | 0b10 Conduit disabled 17035 | -1/Command | Used Integrity Redistributor, redistributed integrity from core (-67) 17198 | -1/Command | Lost 17 parts (4p5n6u2w) 17203 | -1/Command | Used Integrity Redistributor, redistributed integrity from core (-102) 17204 | -1/Command | Core integrity fell below 50% 17388 | -1/Command | Lost 7 parts (2p1n1u3w) 17433 | -1/Command | Core integrity fell below 20% 17474 | -1/Command | Lost 10 parts (3p4n1u2w) 17547 | -1/Command | Spotted B-99 Colossus 17547 | -1/Command | Spotted Executioner 17547 | -1/Command | Spotted Executioner 17547 | -1/Command | Spotted Striker 17549 | -1/Command | Spotted Alpha 7 17551 | -1/Command | Spotted Executioner 17551 | -1/Command | Spotted Executioner 17551 | -1/Command | Spotted Striker 17551 | -1/Command | Spotted Alpha 7 17557 | -1/Command | Destroyed by P-80 Master with Gamma Rifle Last Messages --------------- 17552_ Slug penetrates Striker. 17552_ Slug penetrates Wall. 17552_ Slug penetrates Alpha 7. 17552_ Penetrated by Slug. 17552_ Slug penetrates Striker. 17552_ Slug penetrates Wall. 17552_ Penetrated by Slug. 17552_ Slug penetrates Wall. 17553_ Singularity Device intercepted. 17553_ Adv. System Shield destroyed. 17553_ Knocked back. 17555_ Penetrated by Slug. 17555_ Imp. Antigrav System destroyed. 17555_ Singularity Device intercepted. 17555_ Imp. Diametric Drive destroyed. 17555_ Knocked back. 17556_ Acquired 6 matter. 17557_ Imp. Fusion Compressor destroyed. 17557_ Imp. Q-thruster destroyed. 17557_ Penetrated by Slug. Map ----- +----------------------------------------------------+ | | | | | | | | | ###################??????###################?????? | | # #??????# """T""" #?##### | | # #??????# """ """ #?# ] | | # #??????# !! ### | | # ???????# !! + + | | #?? ?????????# ]! ### | | #???? ???????????# #?# | | #?????? ?????????????# #?# | | #########+########################+####+#########+ | | | | ##### | | #??? | | #?? | | ##################"######"#;+### "" ##? | | ?????????????????###????## # """" # " | | ?????????????????????????# ;k """" # " | | ?????????????????????????# %+ "" / | | ????????????????????????## p p; # | | ???????????????????????## # # | | ???????????????????????# [%! # #+## | | #??????????????????????## # ## | | #??????????????????????##@ # | | ## ^ # # # # ## ## | | #?????????" ^^^E7% ### | | #?????????" ^^^K^ | | #?????????" ^^E^^; =! | | #??????